[Event "Maria Albulet Memorial 2017"]
[Site "Braila"]
[Date "2017.10.13"]
[Round "8"]
[White "Nastase, Andreea-Cristina"]
[Black "Miladinovic, Lena"]
[Result "1/2-1/2"]
[ECO "A45"]
[WhiteElo "1989"]
[BlackElo "2138"]
[Annotator "NA"]
[PlyCount "108"]
[EventDate "2017.??.??"]
[EventCountry "ROU"]
[SourceTitle "playchess.com"]
[Source "ChessBase"]
[SourceQuality "1"]
[TimeControl "40/5400+30:900+30"]

1. d4 {[%emt 0:00:00]} Nf6 {[%emt 0:00:05]} 2. f3 {[%emt 0:00:00]} d5 {[%emt 0:01:23]} 3. Nc3 {[%emt 0:00:01]} c5 {[%emt 0:01:33]} 4. e4 {[%emt 0:00:04]} cxd4 {[%emt 0:00:33]} 5. Qxd4 {[%emt 0:00:05]} Nc6 {[%emt 0:00:01]} 6. Bb5 {[%emt 0:01:53]} Bd7 {[%emt 0:00:05]} 7. Bxc6 {[%emt 0:00:02]} Bxc6 {[%emt 0:00:05]} 8. e5 {[%emt 0:00:05]} Nd7 {[%emt 0:00:04]} 9. e6 {[%emt 0:00:02]} fxe6 {[%emt 0:00:04]} 10. f4 {[%emt 0:01:01]} e5 {[%emt 0:00:28]} 11. fxe5 {[%emt 0:00:13]} e6 {[%emt 0:00:05]} 12. Nf3 {[%emt 0:00:39]} Bc5 {[%emt 0:00:37]} 13. Qg4 {[%emt 0:00:33]} O-O {[%emt 0:02:38]} 14. Bg5 {[%emt 0:00:09]} Qe8 {[%emt 0:07:36]} 15. O-O-O {[%emt 0:00:52]} Kh8 {[%emt 0:05:45]} 16. Ne2 {[%emt 0:08:05]} Qg6 $11 {[%emt 0:14:53]} 17. Kb1 {[%emt 0:01:59]} Rf5 {[%emt 0:18:38]} 18. Nf4 {[%emt 0:09:05]} Qf7 {[%emt 0:01:27]} 19. Nd3 {[%emt 0:10:19]} Bb6 {[%emt 0:04:03]} 20. Rhe1 {[%emt 0:01:14]} Bb5 {[%emt 0:02:38]} 21. h4 {[%emt 0:08:01]} Rc8 {[%emt 0:06:54]} 22. Bc1 {[%emt 0:04:59]} Rc4 {[%emt 0:02:45]} 23. Qh3 {[%emt 0:01:09]} Qg6 {[%emt 0:07:27]} 24. Ng5 {[%emt 0:02:27]} h6 {[%emt 0:04:18]} 25. g4 {[%emt 0:01:38]} Rf8 {[%emt 0:05:50]} 26. h5 {[%emt 0:01:26]} Qe8 {[%emt 0:00:18]} 27. Nf3 {[%emt 0:00:53]} Qc8 {[%emt 0:02:00]} 28. Nh4 {[%emt 0:01:17]} Rxc2 {[%emt 0:04:03]} 29. Ng6+ {[%emt 0:00:03]} Kh7 {[%emt 0:00:10]} 30. Nxf8+ {[%emt 0:00:23]} Nxf8 {[%emt 0:00:03]} 31. g5 {[%emt 0:00:43]} Rc7 {[%emt 0:06:08]} 32. gxh6 {[%emt 0:03:12]} gxh6 {[%emt 0:00:05]} 33. Qf3 {[%emt 0:00:40]} Rg7 {[%emt 0:01:23]} 34. Rf1 {[%emt 0:09:45]} Nd7 {[%emt 0:00:16]} 35. Qf4 {[%emt 0:00:05]} Kg8 {[%emt 0:01:11]} 36. Be3 {[%emt 0:02:56]} Bxe3 {[%emt 0:02:16]} 37. Qxe3 {[%emt 0:00:04]} Qc4 {[%emt 0:00:38]} 38. Rg1 {[%emt 0:02:22]} Qe4 {[%emt 0:00:26]} 39. Rxg7+ {[%emt 0:02:32]} Kxg7 {[%emt 0:00:01]} 40. Qxe4 {[%emt 0:00:00]} dxe4 {[%emt 0:00:05]} 41. Nf4 {[%emt 0:02:48]} Nxe5 {[%emt 0:02:22]} 42. Nxe6+ {[%emt 0:03:33]} Kf6 {[%emt 0:01:08]} 43. Nc5 {[%emt 0:01:10]} e3 {[%emt 0:04:07]} 44. Ne4+ {[%emt 0:05:03]} Ke6 {[%emt 0:03:12]} 45. Rd6+ {[%emt 0:02:28]} Kf5 {[%emt 0:02:40]} 46. Nc3 {[%emt 0:00:23]} e2 {[%emt 0:01:10]} 47. Nxe2 {[%emt 0:00:06]} Bxe2 {[%emt 0:00:05]} 48. Rxh6 {[%emt 0:00:08]} Nf7 {[%emt 0:01:19]} 49. Rg6 {[%emt 0:01:05]} Bxh5 {[%emt 0:00:14]} 50. Rg1 {[%emt 0:00:38]} Bf3 {[%emt 0:01:19]} 51. Rf1 {[%emt 0:01:02]} Ne5 {[%emt 0:00:39]} 52. Kc2 {[%emt 0:00:34]} Ke4 {[%emt 0:00:29]} 53. Kc3 {[%emt 0:00:37]} Kd5 {[%emt 0:01:20]} 54. b4 {[%emt 0:00:54]} b5 {[%emt 0:01:10] Kd4+} 1/2-1/2

[Event "Maria Albulet Memorial 2017"]
[Site "Braila"]
[Date "2017.10.13"]
[Round "8"]
[White "Popa, Catalina-Elena"]
[Black "Djukic, Sandra"]
[Result "0-1"]
[ECO "B47"]
[WhiteElo "1731"]
[BlackElo "2084"]
[Annotator "NA"]
[PlyCount "118"]
[EventDate "2017.??.??"]
[EventCountry "ROU"]
[SourceTitle "playchess.com"]
[Source "ChessBase"]
[SourceQuality "1"]
[TimeControl "40/5400+30:900+30"]

1. e4 {[%emt 0:00:00]} c5 {[%emt 0:00:05]} 2. Nf3 {[%emt 0:00:00]} Nc6 {[%emt 0:00:05]} 3. d4 {[%emt 0:00:00]} cxd4 {[%emt 0:00:06]} 4. Nxd4 Qc7 {[%emt 0:00:05]} 5. Nc3 {[%emt 0:00:00]} e6 {[%emt 0:00:06]} 6. g3 {[%emt 0:00:00]} a6 {[%emt 0:00:06]} 7. Bg2 {[%emt 0:00:06]} d6 {[%emt 0:01:01]} 8. O-O {[%emt 0:00:34]} Bd7 {[%emt 0:00:13]} 9. Be3 {[%emt 0:04:53]} Be7 {[%emt 0:02:38] B47: Sizilianisch (Paulsen/Taimanow-Variante)} 10. Nb3 {[%emt 0:04:46]} Nf6 {[%emt 0:10:02]} 11. f4 {[%emt 0:18:19]} b5 {[%emt 0:19:59]} 12. Qe2 {[%emt 0:07:24]} (12. a3 Bc8 13. e5 dxe5 14. fxe5 Nd7 15. Rxf7 Kxf7 {1-0 (30) Guseinov,G (2643)-Diamant,A (2515) chess.com INT 2017}) 12... O-O {[%emt 0:03:23]} 13. Rad1 {[%emt 0:05:38]} Be8 $146 {[%emt 0:19:29]} ({Vorgänger:} 13... Rac8 14. g4 b4 15. Na4 Na5 16. Nb6 Bb5 17. Qf3 Bxf1 18. Nxc8 Bxg2 19. Nxe7+ {½-½ (19) Zagrebelny,S (2485)-Kurochkin,V (2423) Moscow 2006}) 14. Bf2 {[%emt 0:09:47]} Rb8 {[%emt 0:07:23]} 15. Rfe1 {[%emt 0:09:21]} Nd7 {[%emt 0:10:46]} 16. Nd5 {[%emt 0:13:13]} exd5 {[%emt 0:00:25]} 17. exd5 {[%emt 0:00:02]} Nce5 {[%emt 0:01:44]} 18. fxe5 {[%emt 0:00:05]} Nxe5 {[%emt 0:00:04]} 19. Nc5 {[%emt 0:08:00]} Qa5 {[%emt 0:02:30]} 20. a3 {[%emt 0:00:46]} Rc8 {[%emt 0:04:14]} 21. Bd4 {[%emt 0:03:25]} Ng6 {[%emt 0:02:37]} 22. Nd3 {[%emt 0:02:30]} Bd7 {[%emt 0:02:25]} 23. Bc3 {[%emt 0:03:18]} Rxc3 {[%emt 0:01:38]} 24. bxc3 {[%emt 0:00:02]} Qxc3 {[%emt 0:00:11]} 25. Qd2 {[%emt 0:02:04]} Rc8 {[%emt 0:05:49]} 26. Qxc3 {[%emt 0:07:25]} Rxc3 {[%emt 0:00:04]} 27. Nf4 {[%emt 0:00:17]} Kf8 {[%emt 0:02:03]} 28. Nxg6+ {[%emt 0:00:19]} hxg6 {[%emt 0:00:11]} 29. Be4 {[%emt 0:00:44]} Bf6 {[%emt 0:00:57]} 30. Ra1 {[%emt 0:01:04]} Bd4+ {[%emt 0:00:08]} 31. Kg2 {[%emt 0:00:13]} Bc5 {[%emt 0:00:45]} 32. Rf1 {[%emt 0:00:54]} Kg8 {[%emt 0:00:57]} 33. Rf3 {[%emt 0:00:38]} Rc4 {[%emt 0:00:10]} 34. Bd3 {[%emt 0:00:07]} Rd4 {[%emt 0:00:06]} 35. Raf1 {[%emt 0:00:35]} ({White should play} 35. Re1 $1 $14) 35... f5 {[%emt 0:00:33]} 36. Re1 {[%emt 0:00:43]} Kf8 {[%emt 0:00:52]} 37. h3 {[%emt 0:00:37]} Rxd5 {[%emt 0:00:56]} 38. c4 {[%emt 0:00:18]} Rd4 {[%emt 0:00:19]} 39. cxb5 {[%emt 0:00:04]} axb5 {[%emt 0:00:03]} 40. Kh2 {[%emt 0:00:00]} Bc6 {[%emt 0:01:40]} 41. Rfe3 {[%emt 0:01:50]} Ra4 {[%emt 0:10:27]} 42. Bc2 {[%emt 0:08:33]} Ra7 {[%emt 0:07:28]} 43. Rb3 {[%emt 0:00:41]} Kf7 {[%emt 0:01:41]} 44. Bd3 {[%emt 0:00:49]} Bd5 {[%emt 0:00:03]} 45. Rxb5 {[%emt 0:00:34]} Rxa3 {[%emt 0:00:03]} 46. Bb1 {[%emt 0:01:21]} Bc4 {[%emt 0:01:05]} 47. Rb7+ {[%emt 0:00:08]} Kf6 {[%emt 0:00:16]} 48. Rd1 {[%emt 0:00:45]} d5 {[%emt 0:00:53]} 49. Rc7 Bf2 {[%emt 0:00:22]} 50. Rc6+ {[%emt 0:00:38]} Kg5 {[%emt 0:00:09]} 51. g4 {[%emt 0:00:24]} Be3 {[%emt 0:01:07]} 52. Re1 {[%emt 0:01:27]} Bf4+ {[%emt 0:00:04]} (52... Rb3 $19 53. Kh1 Bf2) 53. Kg2 {[%emt 0:00:05]} Rg3+ {[%emt 0:00:17]} 54. Kf2 {[%emt 0:00:26] [#]} Rxh3 {[%emt 0:00:21]} (54... Rb3) 55. Ree6 $19 {[%emt 0:00:09]} (55. gxf5 $17 Bg3+ 56. Kg2 Bxe1 57. Kxh3 gxf5 58. Kg2) 55... Rh2+ {[%emt 0:00:24]} 56. Kg1 {[%emt 0:00:52]} Rb2 {[%emt 0:01:11]} 57. Rxg6+ {[%emt 0:00:05]} Kh4 {[%emt 0:00:02]} 58. Bxf5 {[%emt 0:00:15]} Be3+ {[%emt 0:00:48]} 59. Kh1 {[%emt 0:00:35]} Kg3 {[%emt 0:00:23]} 0-1

[Event "Maria Albulet Memorial 2017"]
[Site "Braila"]
[Date "2017.10.13"]
[Round "8"]
[White "Patru, Alexandra-Ioana"]
[Black "Uzuneanu, Gabriela"]
[Result "1/2-1/2"]
[ECO "D02"]
[WhiteElo "1623"]
[BlackElo "1564"]
[Annotator "NA"]
[PlyCount "104"]
[EventDate "2017.??.??"]
[EventCountry "ROU"]
[SourceTitle "playchess.com"]
[Source "ChessBase"]
[SourceQuality "1"]
[TimeControl "40/5400+30:900+30"]

1. d4 {[%emt 0:00:00]} d5 {[%emt 0:00:03]} 2. Nf3 {[%emt 0:00:00]} e6 {[%emt 0:00:15]} 3. e3 {[%emt 0:00:00]} c5 {[%emt 0:02:09]} 4. c3 {[%emt 0:00:13]} Nc6 {[%emt 0:01:37]} 5. Bd3 {[%emt 0:00:19]} Nf6 {[%emt 0:02:02]} 6. Nbd2 {[%emt 0:00:25]} Be7 {[%emt 0:03:31]} 7. O-O {[%emt 0:01:27]} O-O {[%emt 0:01:39]} 8. dxc5 {[%emt 0:05:13]} Bxc5 {[%emt 0:03:21]} 9. b4 {[%emt 0:00:10]} Bd6 {[%emt 0:01:24]} 10. a3 {[%emt 0:01:31]} Ne5 {[%emt 0:03:36]} 11. Nxe5 {[%emt 0:02:38]} Bxe5 {[%emt 0:00:22]} 12. Bb2 {[%emt 0:00:33]} Bd7 {[%emt 0:08:31]} 13. Nf3 {[%emt 0:01:13]} Bc7 {[%emt 0:03:22]} 14. c4 {[%emt 0:02:00]} dxc4 {[%emt 0:13:30]} 15. Bxc4 {[%emt 0:00:12]} Bc6 {[%emt 0:05:05]} 16. Be2 {[%emt 0:08:30]} Qe7 {[%emt 0:08:22]} 17. Qc2 {[%emt 0:01:43]} Rac8 {[%emt 0:03:58]} 18. Qb3 {[%emt 0:04:25]} Bd5 {[%emt 0:00:49]} 19. Qa4 {[%emt 0:01:57]} Bb6 {[%emt 0:08:37]} 20. Rac1 {[%emt 0:03:47]} Bc6 {[%emt 0:05:05]} 21. b5 {[%emt 0:02:11]} Bd5 {[%emt 0:00:24]} 22. Qh4 {[%emt 0:00:59]} h6 {[%emt 0:08:51]} 23. Ne5 {[%emt 0:02:19]} Bc5 {[%emt 0:04:17]} 24. Ra1 {[%emt 0:12:24]} Nh7 {[%emt 0:03:52]} 25. Qf4 {[%emt 0:07:08]} Qg5 {[%emt 0:01:00]} 26. Qxg5 {[%emt 0:01:00]} Nxg5 {[%emt 0:00:03]} 27. Nd7 {[%emt 0:02:29]} Rfd8 {[%emt 0:00:17]} 28. Nxc5 {[%emt 0:00:20]} Rxc5 {[%emt 0:00:10]} 29. Bd4 {[%emt 0:00:32]} Rc2 {[%emt 0:01:43]} 30. Bd1 {[%emt 0:00:51]} Rcc8 {[%emt 0:00:07]} 31. Ba4 {[%emt 0:01:48]} b6 {[%emt 0:00:11]} 32. Rfc1 {[%emt 0:00:55]} Ne4 {[%emt 0:01:48]} 33. Bd1 Nd6 34. a4 {[%emt 0:03:22]} Nf5 {[%emt 0:02:37]} 35. Bb2 {[%emt 0:00:58]} Nd6 {[%emt 0:00:18]} 36. Bd4 {[%emt 0:00:47]} Nf5 {[%emt 0:00:48]} 37. Be5 {[%emt 0:00:57]} Bb7 {[%emt 0:01:21]} 38. Bf3 {[%emt 0:02:57]} Bxf3 {[%emt 0:00:50]} 39. gxf3 {[%emt 0:00:08]} Ne7 {[%emt 0:00:28]} 40. Kf1 {[%emt 0:00:00]} f6 {[%emt 0:02:05]} 41. Bb2 {[%emt 0:04:01]} Nd5 {[%emt 0:05:28]} 42. Ke2 {[%emt 0:06:00]} Nc7 {[%emt 0:02:53]} 43. Rc6 {[%emt 0:01:09]} Ne8 {[%emt 0:02:50]} 44. Rac1 {[%emt 0:00:26]} Rxc6 {[%emt 0:01:13]} 45. Rxc6 {[%emt 0:00:22]} Kf7 {[%emt 0:00:15]} 46. Ba3 {[%emt 0:00:33]} Rd7 {[%emt 0:01:12]} 47. Rc8 {[%emt 0:06:52]} Nc7 {[%emt 0:01:24]} 48. h4 {[%emt 0:01:51]} Nd5 {[%emt 0:01:24]} 49. h5 {[%emt 0:00:53]} e5 {[%emt 0:00:07]} 50. Rf8+ {[%emt 0:00:39]} Ke6 {[%emt 0:00:05]} 51. Re8+ {[%emt 0:00:22]} Kf7 {[%emt 0:00:03]} 52. Rf8+ {[%emt 0:03:02]} Ke6 {[%emt 0:00:03]} 1/2-1/2

[Event "Maria Albulet Memorial 2017"]
[Site "Braila"]
[Date "2017.10.13"]
[Round "8"]
[White "Vorniceanu, Alina"]
[Black "Andres, Marina-Corina"]
[Result "1-0"]
[ECO "C54"]
[WhiteElo "1498"]
[BlackElo "1581"]
[Annotator "NA"]
[PlyCount "67"]
[EventDate "2017.??.??"]
[EventCountry "ROU"]
[SourceTitle "playchess.com"]
[Source "ChessBase"]
[SourceQuality "1"]
[TimeControl "40/5400+30:900+30"]

1. e4 {[%emt 0:00:00]} e5 {[%emt 0:00:03]} 2. Nf3 {[%emt 0:00:00]} Nc6 {[%emt 0:00:05]} 3. Bc4 {[%emt 0:00:00]} Bc5 {[%emt 0:00:05]} 4. c3 {[%emt 0:00:00]} Nf6 {[%emt 0:00:05]} 5. d3 {[%emt 0:00:00]} O-O {[%emt 0:00:24]} 6. h3 {[%emt 0:01:09]} d6 {[%emt 0:00:10]} 7. Bb3 {[%emt 0:00:03]} Ne7 {[%emt 0:00:24]} 8. O-O {[%emt 0:00:08]} Ng6 {[%emt 0:00:42]} 9. Re1 {[%emt 0:02:23]} a6 {[%emt 0:01:34]} 10. Nbd2 {[%emt 0:00:32]} Nf4 {[%emt 0:02:56]} 11. Nf1 {[%emt 0:00:52]} N6h5 {[%emt 0:02:31]} 12. d4 {[%emt 0:02:27]} exd4 {[%emt 0:02:17]} 13. Nxd4 {[%emt 0:03:29]} Bxh3 {[%emt 0:29:43]} 14. Bxf4 {[%emt 0:06:32]} Nxf4 {[%emt 0:00:11]} 15. gxh3 {[%emt 0:25:13]} Qg5+ {[%emt 0:02:00]} 16. Ng3 {[%emt 0:01:21]} Nxh3+ {[%emt 0:00:44]} 17. Kg2 {[%emt 0:02:28]} Nf4+ {[%emt 0:02:04]} 18. Kf1 {[%emt 0:09:24]} Bxd4 {[%emt 0:11:09]} 19. cxd4 {[%emt 0:01:33]} h5 {[%emt 0:01:49]} 20. Qf3 {[%emt 0:02:09]} h4 {[%emt 0:01:11]} 21. Ne2 {[%emt 0:06:36]} Nxe2 {[%emt 0:01:46]} 22. Kxe2 {[%emt 0:01:14]} Qb5+ {[%emt 0:02:55]} 23. Qd3 {[%emt 0:02:02]} Qh5+ {[%emt 0:02:10]} 24. Qf3 {[%emt 0:00:16]} Qb5+ {[%emt 0:05:54]} 25. Qd3 {[%emt 0:05:20]} Qxd3+ {[%emt 0:03:40]} 26. Kxd3 {[%emt 0:00:08]} Kh7 {[%emt 0:00:14]} 27. Rh1 {[%emt 0:00:21]} g5 {[%emt 0:00:11]} 28. Rag1 {[%emt 0:00:59]} f6 {[%emt 0:04:30]} 29. f4 {[%emt 0:01:36]} Kh6 {[%emt 0:01:30]} 30. Rg4 {[%emt 0:02:16]} Kh5 {[%emt 0:04:46]} 31. Rhg1 {[%emt 0:02:28]} h3 {[%emt 0:02:55]} 32. Bd1 {[%emt 0:02:04]} Kh6 {[%emt 0:06:05]} 33. fxg5+ {[%emt 0:00:55]} fxg5 {[%emt 0:00:14]} 34. Rxg5 {[%emt 0:00:23]} 1-0

[Event "Maria Albulet Memorial 2017"]
[Site "Braila"]
[Date "2017.10.14"]
[Round "9"]
[White "Aciu, Malina-Andreea"]
[Black "Popa, Catalina-Elena"]
[Result "1-0"]
[ECO "B32"]
[WhiteElo "2006"]
[BlackElo "1731"]
[Annotator "NA RC"]
[PlyCount "65"]
[EventDate "2017.??.??"]
[EventCountry "ROU"]
[SourceTitle "playchess.com"]
[Source "ChessBase"]
[SourceQuality "1"]
[TimeControl "40/5400+30:900+30"]

{[%evp 14,65,27,17,30,39,44,29,44,33,52,27,22,11,35,21,90,75,93,92,97,95,110,103,162,146,174,167,206,222,253,263,427,500,374,425,1270,1290,1404,32767,32767,32767,32767,1310,1300,1785,1359,1675,1461,822,1038,1405,1648,1741]} 1. e4 {[%emt 0:00:00]} c5 {[%emt 0:00:06]} 2. Nf3 {[%emt 0:00:00]} Nc6 {[%emt 0:00:03]} 3. d4 {[%emt 0:00:00]} cxd4 {[%emt 0:00:05]} 4. Nxd4 {[%emt 0:00:00]} e5 {[%emt 0:00:07]} 5. Nb5 {[%emt 0:00:00]} d6 {[%emt 0:00:04]} 6. N1c3 {[%emt 0:00:00]} a6 {[%emt 0:00:04]} 7. Na3 {[%emt 0:00:00]} b5 {[%emt 0:00:05]} 8. Nd5 {[%emt 0:00:00]} Nge7 {[%emt 0:00:11]} 9. c4 {[%emt 0:00:00]} Nd4 {[%emt 0:00:26]} 10. Bd3 {[%emt 0:03:21]} Nxd5 {[%emt 0:01:33] LiveBook: 26 Games B32: Sicilian: Löwenthal and Kalashnikov Variations} 11. exd5 {[%emt 0:00:43]} (11. cxd5 Be7 12. O-O O-O 13. Be3 Bd7 14. Qd2 Qb8 15. f4 Bd8 16. Bxd4 exd4 17. Nc2 Bf6 18. Rae1 Re8 19. Qf2 Kh8 20. Kh1 Qb6 21. Re2 {1-0 (32) Dominguez Perez,L (2757)-El Gindy,E (2487) Tromsoe 2013}) 11... g6 {[%emt 0:07:10]} 12. O-O {[%emt 0:00:53]} Bg7 {[%emt 0:00:12]} 13. cxb5 {[%emt 0:04:29]} O-O {[%emt 0:00:31]} 14. Be3 {[%emt 0:06:03]} Bb7 $146 {[%emt 0:08:42]} ({Predecessor:} 14... Nf5 $11 15. Bxf5 gxf5 16. b6 f4 {½-½ (44) Daubenfeld,N (2503)-Neagu,L (2466) ICCF email 2009}) 15. bxa6 {[%emt 0:15:51]} Bxa6 {[%emt 0:01:02]} 16. Bxd4 {[%emt 0:03:48]} Bxd3 {[%emt 0:06:22]} 17. Qxd3 {[%emt 0:01:07]} exd4 {[%emt 0:00:05]} 18. Nb5 {[%emt 0:01:44]} Qb6 {[%emt 0:04:04]} 19. a4 {[%emt 0:09:31]} Rfe8 {[%emt 0:13:10]} 20. b4 {[%emt 0:03:13]} Re5 {[%emt 0:04:47]} 21. Rfc1 {[%emt 0:03:01]} Qb7 {[%emt 0:09:18]} 22. a5 {[%emt 0:09:05]} Qa6 {[%emt 0:03:48]} ({Not} 22... Rxd5 23. Nc7 $16) (22... Bh6 $142) 23. Rc6 {[%emt 0:03:34]} Qb7 {[%emt 0:00:10]} 24. a6 {[%emt 0:10:40]} Rxd5 $2 {[%emt 0:09:26]} (24... Qd7 25. Nc7 Ra7) 25. axb7 {[%emt 0:00:07]} Rxa1+ {[%emt 0:00:03]} 26. Qf1 {[%emt 0:00:05]} Rxf1+ {[%emt 0:00:04]} 27. Kxf1 {[%emt 0:00:05]} Rxb5 {[%emt 0:00:01]} 28. Rc8+ {[%emt 0:00:07]} Bf8 {[%emt 0:00:04]} 29. b8=Q {[%emt 0:00:16]} Rxb8 {[%emt 0:00:02]} 30. Rxb8 {[%emt 0:00:07]} Kg7 {[%emt 0:01:34]} 31. Ke2 {[%emt 0:01:25]} (31. b5 $142 Kf6 32. Rxf8) 31... Be7 {[%emt 0:00:45]} 32. Kd3 {[%emt 0:00:28]} Bf6 {[%emt 0:02:23]} 33. Rc8 $18 {[%emt 0:01:26]} 1-0